[Event "Silves Open 2025"]
[Site "Fissul"]
[Date "2025.03.06"]
[Round "8.4"]
[White "Malassagne, Raphael"]
[Black "Khamrakulov, Ibragim S."]
[Result "0-1"]
[Annotator "TA"]
[ECO "D02"]
[WhiteElo "2267"]
[BlackElo "2384"]
[PlyCount "82"]
[EventDate "2025.03.03"]
[EventType "swiss"]
[EventCountry "POR"]
[SourceTitle "playchess.com"]
[Source "ChessBase"]
[SourceQuality "1"]
[TimeControl "5400+30"]

{[%evp 11,82,-8,15,10,27,15,13,11,26,33,54,44,57,57,144,23,28,17,18,38,31,22,13,9,23,0,37,-26,-18,-19,12,0,0,-2,10,-12,0,-14,-29,-58,-49,-66,-16,-68,-57,-108,-31,-55,-33,-62,-49,-463,-452,-1143,-333,-331,-216,-242,-226,-219,-224,-243,-245,-1061,-1054,-1000,-998,-806,-799,-799,-775,-775,-768]} 1. d4 {[%emt 0:00:04]} Nf6 {[%emt 0:06:41]} 2. Bf4 {[%emt 0:00:07]} e6 {[%emt 0:00:45]} 3. e3 {[%emt 0:00:21]} c5 {[%emt 0:00:12]} 4. Nd2 {[%emt 0:00:40]} Nc6 {[%emt 0:00:07]} 5. Ngf3 {[%emt 0:03:05]} d5 {[%emt 0:01:52]} 6. c3 {[%emt 0:00:31]} Nh5 {[%emt 0:00:23][%cal Bf6h5,Bh5g7,Bg7f5][%mdl 32]} 7. Bg5 {[%emt 0:00:40][%cal Bf4g5,Bg5h4,Bh4g3][%mdl 32] D02: 1 d4 d5 2 Nf3 sidelines, including 2...Nf6 3 g3 and 2...Nf6 3 Bf4.} Qb6 {[%emt 0:00:19]} 8. Rb1 {[%emt 0:03:04]} h6 {[%emt 0:00:52]} 9. Bh4 {[%emt 0:00:38] The position is equal.} g5 {[%emt 0:00:09]} 10. Ne5 {[%emt 0:06:24] [#]} Ng7 {[%emt 0:12:55]} 11. Bg3 {[%emt 0:03:25]} Nf5 {[%emt 0:11:00]} 12. Qh5 $1 {[%emt 0:17:30]} Qc7 {[%emt 0:08:00]} (12... Nxe5 $14 13. Bxe5 Bg7) 13. Nxc6 {[%emt 0:07:15]} (13. Bb5 $16 {and Nxc6 would now be decisive} a6 14. Bxc6+ bxc6 15. O-O) 13... Nxg3 $11 {[%emt 0:00:32]} 14. hxg3 $146 {[%emt 0:00:02]} (14. fxg3 bxc6 15. Nf3 Bg7 16. Bd3 e5 17. Nxe5 Bxe5 18. dxe5 Qxe5 19. O-O Be6 20. Rbe1 {½-½ Torre,E (2460)-Sauravh,K (2239) Barbera del Valles op 41st 2018 (2)}) 14... bxc6 {[%emt 0:00:15]} 15. Bd3 {[%emt 0:02:15]} cxd4 {[%emt 0:18:50]} 16. exd4 {[%emt 0:05:40]} e5 {[%emt 0:06:00]} 17. dxe5 {[%emt 0:11:40]} Qxe5+ {[%emt 0:00:48]} 18. Kf1 {[%emt 0:00:03]} Qf6 {[%emt 0:01:26]} 19. c4 {[%emt 0:05:33]} (19. Re1+ $14 Be7 20. Nf3) 19... Bc5 {[%emt 0:03:33][%csl Gc5][%cal Rf6f2]} 20. Qf3 {[%emt 0:04:39]} Ke7 {[%emt 0:01:46] Active counter play!} (20... Bd4 $5) 21. b4 {[%emt 0:05:36]} Bd4 {[%emt 0:00:52][%cal Oc8g4]} 22. b5 {[%emt 0:00:41]} Rb8 {[%emt 0:06:02]} 23. cxd5 {[%emt 0:08:29]} (23. Re1+ $5 Kd6 24. bxc6 $11) 23... cxd5 $40 {[%emt 0:00:34][%cal Oc8g4][%mdl 128] White needs to defend precisely.} 24. Rc1 {[%emt 0:00:30]} Bb6 {[%emt 0:01:54][%cal Oc8g4]} 25. Qxf6+ {[%emt 0:05:52]} Kxf6 {[%emt 0:00:22]} 26. a4 {[%emt 0:00:02]} Be6 {[%emt 0:01:11]} (26... Kg7 $15) 27. Ke2 {[%emt 0:00:38]} (27. Nb3 $11) 27... Kg7 {[%emt 0:04:51]} 28. Rhd1 {[%emt 0:01:54] [#]} (28. Rhe1 $15) 28... Rbe8 {[%emt 0:01:49]} (28... h5 $1 $17 29. Nf3 Bg4) 29. Kf1 $15 {[%emt 0:00:08]} h5 {[%emt 0:00:08]} 30. Nb3 {[%emt 0:00:39]} h4 $1 {[%emt 0:01:27]} 31. gxh4 $2 {[%emt 0:01:15][%mdl 8192] This move loses the game for White.} (31. a5 $15 Bd8 32. Kg1) 31... Rxh4 $19 {[%emt 0:00:09][%cal Oe6g4] ( -> ...Bg4!)} 32. g3 {[%emt 0:00:45]} (32. Ke2 $142) 32... Rxa4 $2 {[%emt 0:00:06]} (32... Rh2 33. Nc5 Bg4 (33... Bh3+ $2 34. Kg1 $19)) 33. Nc5 {[%emt 0:00:03]} Bh3+ {[%emt 0:00:25] This pair of bishops is nice.} 34. Kg1 {[%emt 0:00:04]} Ra2 {[%emt 0:00:07] ...Bg4 is the strong threat.} 35. Bf1 {[%emt 0:00:44]} Bxf1 {[%emt 0:00:19]} 36. Kxf1 {[%emt 0:00:31]} Ree2 {[%emt 0:02:27]} 37. Rxd5 $2 {[%emt 0:00:04]} (37. Nd3) 37... Rxf2+ {[%emt 0:00:15] Black is clearly winning.} 38. Kg1 {[%emt 0:00:20]} Rg2+ {[%emt 0:00:07]} 39. Kh1 {[%emt 0:00:05]} Rh2+ {[%emt 0:00:43]} 40. Kg1 {[%emt 0:00:05]} Rag2+ {[%emt 0:00:04]} 41. Kf1 {[%emt 0:00:03]} Rxg3 {[%emt 0:00:07] Weighted Error Value: White=0.58/Black=0.28 (precise)   Loses game:     	White=1     	---        Mistake:       	White=6     	Black=4      Inaccurate:     	White=1     	Black=2      OK:         	White=9     	Black=9      Best:        	White=3     	Black=2      Strong:       	White=1     	Black=1} 0-1

[Event "Silves Open 2025"]
[Site "Fissul"]
[Date "2025.03.06"]
[Round "8.5"]
[White "Lux, Hugo de Melo"]
[Black "Ryabukhin, Roman"]
[Result "1-0"]
[Annotator "TA"]
[ECO "B62"]
[WhiteElo "2329"]
[BlackElo "2209"]
[PlyCount "33"]
[EventDate "2025.03.03"]
[EventType "swiss"]
[EventCountry "POR"]
[SourceTitle "playchess.com"]
[Source "ChessBase"]
[SourceQuality "1"]
[TimeControl "5400+30"]

{[%evp 13,33,30,29,0,0,0,18,25,19,29,16,24,25,42,49,42,85,77,93,93,415,416]} 1. e4 {[%emt 0:00:56]} c5 {[%emt 0:00:05]} 2. Nf3 {[%emt 0:00:11]} d6 {[%emt 0:00:20]} 3. d4 {[%emt 0:00:23]} cxd4 {[%emt 0:00:08]} 4. Nxd4 {[%emt 0:00:04]} Nf6 {[%emt 0:00:05]} 5. Nc3 {[%emt 0:00:08]} Nc6 {[%emt 0:00:03]} 6. Bb5 {[%emt 0:00:18]} Bd7 {[%emt 0:00:05]} 7. Bg5 {[%emt 0:00:12]} e6 {[%emt 0:00:07]} 8. Qd3 $1 {[%emt 0:00:09][%mdl 4] outshines the older 8.Bxc6. B62: Sicilian: Richter-Rauzer: 6...e6: Unusual White 7th moves.} Be7 {[%emt 0:03:55]} 9. O-O-O {[%emt 0:00:08]} Nxd4 {[%emt 0:07:07]} 10. Bxd7+ {[%emt 0:00:06] A sharp opening. The position is equal.} Nxd7 {[%emt 0:00:04] Excellent horsemanship.} 11. Bxe7 {[%emt 0:00:06]} Kxe7 {[%emt 0:00:03]} 12. Qxd4 {[%emt 0:00:06]} Qb6 {[%emt 0:00:03]} 13. Qd2 {[%emt 0:00:32]} Rhc8 {[%emt 0:04:28]} 14. f4 {[%emt 0:05:34] Dodges Ne5} h6 $146 {[%emt 0:06:59]} ({Predecessor:} 14... Rc6 15. Rhe1 Kf8 16. Re3 Nc5 17. Rg3 Rac8 18. Qd4 f6 19. Kb1 e5 20. Qd5 exf4 {1-0 Brkic,A (2611)-Kramer,J (2423) BL2-Nord 2122 2022 (1.2)}) 15. Rhe1 {[%emt 0:08:39]} Rc7 {[%emt 0:27:12]} 16. Re3 {[%emt 0:44:47]} Rc6 $2 {[%emt 0:15:21][%mdl 8192] [#]} (16... Rac8 $16 {is a better chance.}) 17. Nd5+ $1 {[%emt 0:01:31][%mdl 512] Weighted Error Value: White=0.03 (flawless) /Black=0.57  Loses game:     	---       	Black=1      Inaccurate:     	---       	Black=1      OK:         	White=6     	Black=3      Best:        	White=1     	---        Brilliant:      	White=1     	---} 1-0

[Event "Silves Open 2025"]
[Site "Fissul"]
[Date "2025.03.06"]
[Round "8.7"]
[White "Fernandes, Antonio"]
[Black "Hopman, Pieter"]
[Result "0-1"]
[Annotator "TA"]
[ECO "C41"]
[WhiteElo "2326"]
[BlackElo "2312"]
[PlyCount "106"]
[EventDate "2025.03.03"]
[EventType "swiss"]
[EventCountry "POR"]
[SourceTitle "playchess.com"]
[Source "ChessBase"]
[SourceQuality "1"]
[TimeControl "5400+30"]

{[%evp 9,106,25,25,22,32,39,43,17,70,67,73,85,114,25,64,58,63,52,97,105,131,120,135,131,133,123,137,139,182,184,211,162,343,333,344,350,352,133,131,129,176,176,179,183,201,183,190,136,204,193,189,151,158,165,190,189,186,149,224,228,246,157,158,0,159,158,159,-501,-491,-490,-489,-507,-495,-525,-533,-534,-532,-498,-467,-677,-683,-850,-801,-892,-865,-992,-980,-987,-976,-956,-960,-1159,-1149,-1362,-1366,-1353,-1345,-1151,-909]} 1. e4 {[%emt 0:22:47]} d6 {[%emt 0:00:06]} 2. d4 {[%emt 0:00:46]} Nf6 {[%emt 0:00:09]} 3. Nc3 {[%emt 0:00:03]} e5 {[%emt 0:00:06]} 4. Nf3 {[%emt 0:01:10]} Nbd7 {[%emt 0:00:07]} 5. g3 {[%emt 0:08:02]} Be7 {[%emt 0:00:43]} 6. Bg2 {[%emt 0:00:02] C41: Philidor Defence.} c6 {[%emt 0:00:12]} 7. a4 {[%emt 0:00:10]} b6 {[%emt 0:02:20]} 8. O-O {[%emt 0:03:24] White is slightly better.} a6 {[%emt 0:00:20]} (8... O-O $11) 9. Nh4 $14 {[%emt 0:11:07]} g6 {[%emt 0:14:28] Wards off Nf5} 10. Bh6 {[%emt 0:01:04]} Bb7 {[%emt 0:13:32]} 11. h3 {[%emt 0:03:27]} (11. f4 $16) 11... Qc7 $146 {[%emt 0:09:16]} (11... b5 12. a5 {1-0 Hovhannisyan,M (2536)-Nachbar,B (2231) NED-chT 1415 2014 (8.6)}) 12. Nf3 {[%emt 0:03:19]} Bf8 {[%emt 0:00:20]} 13. Qd2 {[%emt 0:01:24]} O-O-O {[%emt 0:01:39]} 14. Be3 {[%emt 0:06:43]} Bg7 {[%emt 0:04:00]} 15. Rfd1 $1 {[%emt 0:21:58]} Rhe8 {[%emt 0:02:51]} 16. d5 {[%emt 0:00:16]} cxd5 {[%emt 0:02:36]} 17. Nxd5 {[%emt 0:03:50]} Nxd5 {[%emt 0:03:34]} 18. exd5 {[%emt 0:00:01]} Kb8 {[%emt 0:01:37]} 19. Ng5 {[%emt 0:02:06][%csl LRf7,LRh7]} Re7 {[%emt 0:00:28]} 20. Ra3 {[%emt 0:02:06][%cal Oa3c3] Hoping for Rc3!.} (20. Nxh7 $6 f6 $16) 20... h6 $2 {[%emt 0:10:52]} (20... e4 21. Nxe4 (21. Bxe4 h6 $17) 21... Bxb2) 21. Ne4 $18 {[%emt 0:00:05]} Nc5 {[%emt 0:04:09]} 22. Nxc5 {[%emt 0:00:21]} (22. Bxh6 Bxh6 (22... Nxe4 23. Bxe4 Bxh6 24. Qxh6 $14) 23. Qxh6 Nxe4 24. Bxe4 Qc4) 22... bxc5 {[%emt 0:02:40]} 23. Bxh6 $2 {[%emt 0:02:04]} (23. b4 $18 {is more deadly.}) 23... Bxh6 $16 {[%emt 0:00:54]} 24. Qxh6 {[%emt 0:00:01]} e4 {[%emt 0:01:24]} (24... Ka7 $16 25. Rc3 Qb6) 25. Re3 $18 {[%emt 0:01:58]} Rde8 {[%emt 0:00:58]} 26. c4 {[%emt 0:00:35]} Qd7 {[%emt 0:04:44]} 27. Qf4 {[%emt 0:01:57]} f5 {[%emt 0:02:45]} 28. Qg5 {[%emt 0:01:05]} (28. a5 $18) 28... Qxa4 {[%emt 0:01:08]} (28... Rg7 $16 {was worth a try.} 29. Ra3 Ka7) 29. b3 {[%emt 0:00:01]} Qd7 {[%emt 0:00:12]} 30. Qxg6 {[%emt 0:00:03]} Bc8 {[%emt 0:02:18]} 31. Rde1 {[%emt 0:00:15]} Rg7 {[%emt 0:00:45]} 32. Qh6 {[%emt 0:00:02]} Reg8 {[%emt 0:00:53]} 33. Qf4 {[%emt 0:00:28]} Ka7 {[%emt 0:01:03] [#]} (33... Qe7 $16 34. R3e2 Qe5 35. Qxe5 dxe5) 34. Rb1 $1 {[%emt 0:00:22]} Qd8 {[%emt 0:01:06]} 35. Re2 {[%emt 0:01:53]} Rb7 {[%emt 0:00:15]} 36. Re3 $2 {[%emt 0:01:01]} ({Better is} 36. Kh2 $16) 36... Qf8 $2 {[%emt 0:05:23]} (36... Rbg7 $1 $11) 37. Kh2 $16 {[%emt 0:01:06]} Rh7 {[%emt 0:00:55] [#] Threatens to win with ...Rg4.} 38. b4 $2 {[%emt 0:01:10] This costs White the game.} (38. f3 $1 $16 {is necessary to keep the advantage.}) 38... Rg4 $19 {[%emt 0:00:26] Black is clearly winning.} 39. Rxe4 {[%emt 0:01:16][%cal Oe4e8]} Rxf4 {[%emt 0:00:09]} 40. Rxf4 {[%emt 0:00:02]} cxb4 {[%emt 0:00:49]} 41. Rxb4 {[%emt 0:00:10]} Rb7 {[%emt 0:01:02]} 42. Ra4 {[%emt 0:00:01]} Rb2 {[%emt 0:01:07] Wards off Ra2} 43. Ra3 {[%emt 0:00:38]} Kb6 {[%emt 0:01:48]} 44. c5+ {[%emt 0:01:07]} (44. h4 $142 a5 45. Bh3) 44... dxc5 {[%emt 0:00:30]} 45. Raf3 {[%emt 0:01:02]} Rb4 {[%emt 0:00:29]} 46. Bf1 {[%emt 0:00:26]} a5 {[%emt 0:00:41]} 47. Bc4 {[%emt 0:00:17]} Qd6 {[%emt 0:01:07]} 48. Re3 {[%emt 0:00:31]} a4 {[%emt 0:00:43]} 49. h4 {[%emt 0:00:13]} Bd7 {[%emt 0:01:15]} 50. h5 {[%emt 0:00:07]} Qh6 {[%emt 0:00:33]} 51. Rh4 {[%emt 0:00:05] [#]} f4 $1 {[%emt 0:00:34]} 52. Rxf4 {[%emt 0:00:17]} Qxh5+ {[%emt 0:00:32]} 53. Rh4 {[%emt 0:02:03] [#]} Qxh4+ $3 {[%emt 0:00:31][%mdl 512] Weighted Error Value: White=0.53/Black=0.24 (precise)   Loses game:     	White=1     	---        Missed win:     	White=1     	---        Mistake:       	White=4     	Black=6      Inaccurate:     	White=2     	Black=4      OK:         	White=19    	Black=13     Best:        	White=1     	Black=2} 0-1

[Event "Silves Open 2025"]
[Site "Fissul"]
[Date "2025.03.06"]
[Round "8.8"]
[White "Nguyen, Anh Khoi"]
[Black "Degardin, Sylvain"]
[Result "0-1"]
[Annotator "TA"]
[ECO "E04"]
[WhiteElo "2520"]
[BlackElo "2309"]
[PlyCount "67"]
[EventDate "2025.03.03"]
[EventType "swiss"]
[EventCountry "POR"]
[SourceTitle "playchess.com"]
[Source "ChessBase"]
[SourceQuality "1"]
[TimeControl "5400+30"]

{[%evp 11,67,20,44,0,33,33,42,45,64,66,58,52,51,52,57,31,33,52,54,41,75,0,0,0,26,12,13,0,15,-80,-66,-143,-148,-267,-261,-292,-303,-368,-395,-572,-572,-522,-356,-423,-405,-456,-419,-352,0,0,0,-29976,-847,-961,-720,-2306,-1364,-29988]} 1. d4 {[%emt 0:00:01]} d5 {[%emt 0:00:19]} 2. c4 {[%emt 0:00:06]} e6 {[%emt 0:00:16]} 3. Nf3 {[%emt 0:00:05]} Nf6 {[%emt 0:00:17]} 4. g3 {[%emt 0:00:10]} dxc4 {[%emt 0:00:27]} 5. Bg2 {[%emt 0:00:43]} c6 {[%emt 0:00:27]} 6. Ne5 {[%emt 0:00:50]} Bb4+ {[%emt 0:00:33]} 7. Bd2 {[%emt 0:13:59] E04: Open Catalan: 5 Nf3.} Be7 {[%emt 0:00:46] The main line 7...Be7 scores better than 7...Qxd4.} 8. e3 {[%emt 0:05:58]} b5 {[%emt 0:00:43]} 9. Nxc6 {[%emt 0:05:26] White is slightly better.} Nxc6 {[%emt 0:01:03]} 10. Bxc6+ {[%emt 0:01:05]} Bd7 {[%emt 0:00:11]} 11. Bxa8 {[%emt 0:03:49]} Qxa8 {[%emt 0:00:34]} 12. f3 {[%emt 0:07:59]} e5 {[%emt 0:00:43]} 13. O-O {[%emt 0:17:05]} exd4 {[%emt 0:00:52]} 14. exd4 {[%emt 0:00:49]} O-O {[%emt 0:00:17]} 15. Re1 {[%emt 0:08:38]} Re8 $146 {[%emt 0:05:22]} (15... Nd5 16. Nc3 Bf6 17. Nxd5 Qxd5 18. Bb4 Rc8 19. Re5 Bxe5 20. dxe5 Qb7 21. Qd6 Be6 {½-½ Michalik,P (2549)-Harikrishna,P (2738) CZE-chT 1718 2017 (9.2)}) 16. Bg5 {[%emt 0:06:45]} (16. a3 $16) 16... Bc6 $1 $11 {[%emt 0:12:22]} 17. Nd2 {[%emt 0:03:44][%cal Oa2a4] a4! would now be deadly.} Qd8 {[%emt 0:05:10]} 18. Bxf6 {[%emt 0:09:24]} (18. a4 {feels hotter.} Qxd4+ 19. Be3 Qxb2 20. Rb1) 18... Bxf6 {[%emt 0:01:34]} 19. Rxe8+ {[%emt 0:00:08]} Bxe8 {[%emt 0:03:34] A strong pair of Bishops.} 20. Ne4 {[%emt 0:07:39]} (20. Kg2 $11) 20... Qxd4+ $17 {[%emt 0:03:07]} (20... Bxd4+ 21. Kg2 $14) 21. Kh1 {[%emt 0:00:27]} ({Better is} 21. Qxd4 $15 Bxd4+ 22. Kf1 Bxb2 23. Re1) 21... Qxb2 {[%emt 0:03:29] Black is more active.} 22. Rb1 {[%emt 0:01:12]} (22. Rc1 $17 {was called for.}) 22... Qxa2 $19 {[%emt 0:03:52]} 23. Nxf6+ {[%emt 0:01:15]} gxf6 {[%emt 0:00:04][%mdl 4096] Endgame KQR-KQB} 24. Ra1 {[%emt 0:00:33]} Qf2 {[%emt 0:01:32]} 25. Qd5 {[%emt 0:02:08] Inhibits Bc6.} (25. Qd8 $142 Qxf3+ 26. Kg1) 25... c3 {[%emt 0:01:45]} 26. Qf5 {[%emt 0:01:37]} c2 {[%emt 0:05:12] [#]} 27. Rc1 {[%emt 0:01:30]} b4 {[%emt 0:05:44]} 28. Qg4+ {[%emt 0:00:40]} Kh8 {[%emt 0:00:14]} 29. Qf5 {[%emt 0:00:20]} b3 $2 {[%emt 0:03:50]} (29... a5 $19 {and ...b3 should not be overlooked} 30. Qxf6+ Kg8 31. Qg5+ Kf8 32. Qh6+ Ke7 33. Qh4+ Kd6 34. Qf6+ (34. Qf4+ $2 Kc5 $19) 34... Kc5 (34... Kc7 35. Qe5+ Kb7 36. Qxe8 $17) 35. Qf5+ Kb6 (35... Kd4 36. Qxc2 Qxc2 37. Rxc2 $19) 36. Qxc2 Qxc2 (36... Qxf3+ 37. Kg1 $17) 37. Rxc2 b3) 30. Qxf6+ $11 {[%emt 0:00:26]} Kg8 {[%emt 0:00:02] Really sharp!} 31. Qc3 {[%emt 0:00:46][%mdl 8192] Repels Qd2} (31. Qg5+ $11 Kf8 32. Qh6+ Ke7 33. Qh4+ Kd7 34. Qa4+ Kd8 35. Qh4+ (35. Qxb3 $2 {loses.} Bc6 $19) 35... Kc7 36. Qc4+ Bc6 37. Qxf7+ Kd6 38. Qf6+ Kd5 39. Qf7+ (39. Qc3 $2 Qxf3+ 40. Qxf3+ Kd6 $19) 39... Ke5 (39... Kd6 40. Qf6+ Kd7 41. Qf7+ Kd6 $11) 40. Qe7+ Kd5 41. Qf7+) 31... Qb6 {[%emt 0:06:08]} (31... h5 $142 32. Qe5 Qxf3+ 33. Kg1 Bc6 (33... Qd1+ $2 34. Kf2 $19) 34. Qg5+ Kh7 35. Qd2 Be4 36. Rf1 Qxf1+ (36... b2 {is a self mate.} 37. Qxc2 Qh1+ 38. Kf2 Qxh2+ 39. Ke3 Qxc2 40. Rxf7+ Kg8 41. Rd7 Qc5+ 42. Kf4 Qf5+ 43. Ke3 Qxd7 44. Kxe4 b1=Q+ 45. Ke3 Qg1+ 46. Ke4 Qf2 47. Ke5 Qff5#) 37. Kxf1 b2 38. Kf2 c1=Q (38... b1=Q $2 39. Ke3 $19) 39. Qd7 Qc5+ (39... b1=R 40. Qxf7+ Kh6 41. Qf6+ Bg6 42. Qh8+ Kg5 43. Qe5+ Kg4 44. Qe6+ Bf5 45. Qe2+ Kg5 46. Qe7+ Kg6 47. Qe8+ Kf6 48. Qd8+ Ke5 49. Qh8+ Kd6 50. Qf8+ Kc7 51. Qf7+ Bd7 52. Qf4+ Qxf4+ 53. gxf4 $19) 40. Ke2 Qc4+ (40... b1=R $2 41. Qxf7+ Kh6 42. Qe6+ Bg6 43. Qe3+ Qxe3+ 44. Kxe3 $19) (40... Qc2+ 41. Ke3 Qc3+ 42. Ke2 Qf3+ 43. Kd2 b1=Q 44. Qxf7+ Qxf7 45. h3 Qd3+ 46. Ke1 Qff1#) 41. Ke3 b1=Q (41... b1=R 42. Qxf7+ Qxf7 43. Kxe4 Qd7 44. Kf3 Re1 45. Kf2 Qd2+ 46. Kf3 Qe2+ 47. Kf4 Qg4#) 42. h4 Qc3+ 43. Kf4 Qf1+ 44. Kg5 Qxg3+ 45. Kxh5 Qg6#) 32. Re1 {[%emt 0:00:29] Black is clearly winning.} Qc6 {[%emt 0:10:47]} 33. Qe3 {[%emt 0:00:41] [#]} h6 $1 {[%emt 0:00:23][%cal Ob3b2] ( -> ...b2!)} 34. Qd3 {[%emt 0:01:03] Weighted Error Value: White=0.74/Black=1.07  Loses game:     	White=1     	---        Missed win:     	---       	Black=1      Mistake:       	White=5     	Black=1      Inaccurate:     	White=1     	Black=4      OK:         	White=7     	Black=5      Best:        	White=1     	Black=6      Strong:       	---       	Black=1} (34. Qxb3 c1=Q) 0-1